bitfinex/quotes_BTCUSD_20220111
["timestamp","ask_amount","ask_price","bid_price","bid_amount"]
[1641881193956,0.379105,42142.0,42140.0,0.33120678]
[1641881194360,0.0473,42141.0,42138.0,0.002]
[1641881194560,0.371105,42138.0,42136.0,0.0033]
[1641881194759,0.418405,42137.0,42136.0,0.0033]
[1641881194958,0.0473,42137.0,42136.0,0.0033]
[1641881195157,0.1473,42137.0,42136.0,0.0033]
[1641881195359,0.0473,42137.0,42136.0,0.25032757]
[1641881195801,0.0603,42137.0,42136.0,0.25032757]
[1641881196001,0.0603,42137.0,42136.0,0.0033]
[1641881197003,0.0473,42137.0,42136.0,0.0033]
[1641881197802,0.0563,42137.0,42136.0,0.0033]
[1641881198202,0.0563,42137.0,42136.0,0.004025]
[1641881199004,0.0563,42137.0,42136.0,0.2682827]
[1641881199203,0.0473,42137.0,42136.0,0.2682827]
[1641881199658,0.4547,42141.0,42136.0,0.2682827]
[1641881199855,0.01,42137.0,42136.0,0.2682827]
[1641881200861,0.01,42137.0,42136.0,0.9182827]
[1641881201057,0.01,42137.0,42136.0,1.2893877]
[1641881201254,0.01,42137.0,42136.0,1.63924131]
[1641881201457,0.01,42137.0,42136.0,1.2893877]
[1641881201656,0.03535418,42141.0,42136.0,1.2793877]
[1641881201857,0.03535418,42141.0,42136.0,0.2581827]
[1641881202757,0.03535418,42141.0,42135.0,0.0017789]
[1641881203112,0.00129817,42137.0,42135.0,0.0009689]
[1641881203610,0.00129817,42137.0,42135.0,0.00029]
[1641881203811,0.009,42137.0,42136.0,0.45047161]
[1641881204714,0.00836771,42137.0,42136.0,0.45047161]
[1641881205212,0.03535418,42141.0,42136.0,0.45047161]
[1641881205914,0.04335418,42141.0,42136.0,0.45047161]
[1641881207056,0.03535418,42141.0,42136.0,0.44047161]
[1641881207460,0.03472195,42141.0,42136.0,0.44047161]
[1641881207657,0.03472195,42141.0,42135.0,0.63212612]
[1641881207658,0.03472195,42141.0,42135.0,0.0009689]
[1641881207857,0.04272195,42141.0,42135.0,0.0009689]
[1641881208056,0.04272195,42141.0,42138.0,0.0005842]
[1641881208257,0.371105,42140.0,42138.0,0.0005842]
[1641881208658,0.471105,42140.0,42138.0,0.0005842]
[1641881209259,0.1,42140.0,42138.0,0.0005842]
[1641881209658,0.03472195,42141.0,42138.0,0.0005842]
[1641881209862,0.008,42140.0,42138.0,0.0005842]
[1641881210907,0.771105,42139.0,42138.0,0.0005842]
[1641881211207,0.80300051,42139.0,42138.0,0.0005842]
[1641881211408,1.10933474,42139.0,42138.0,0.0005842]
[1641881211609,0.80300051,42139.0,42138.0,0.0005842]
[1641881211807,0.86500051,42139.0,42138.0,0.0005842]
[1641881212810,0.81500051,42139.0,42138.0,0.0005842]
[1641881213210,0.80300051,42139.0,42135.0,0.0008742]
[1641881213412,0.80300051,42139.0,42135.0,0.0015531]
[1641881214010,0.81200051,42139.0,42135.0,0.0015531]
[1641881214211,0.109,42139.0,42135.0,0.0015531]
[1641881214460,0.109,42139.0,42135.0,0.00155311]
[1641881214662,0.009,42139.0,42135.0,0.00155311]
[1641881215162,0.03472195,42141.0,42135.0,0.00155311]
[1641881215362,0.371105,42140.0,42135.0,0.00155311]
[1641881215560,0.31783193,42139.0,42135.0,0.0008742]
[1641881215759,0.31783193,42139.0,42135.0,0.0015531]
[1641881215760,0.371105,42138.0,42135.0,0.0015531]
[1641881216162,0.471105,42138.0,42135.0,0.0015531]
[1641881216761,0.471105,42138.0,42135.0,0.0008742]
[1641881217964,0.481105,42138.0,42135.0,0.0008742]
[1641881218207,0.481105,42138.0,42137.0,0.00058507]
[1641881219007,0.82070884,42138.0,42137.0,0.00058507]
[1641881219207,0.81070884,42138.0,42137.0,0.00058507]
[1641881219907,0.483105,42138.0,42137.0,0.00058507]
[1641881221210,0.471105,42138.0,42137.0,0.00058507]
[1641881221863,0.482105,42138.0,42137.0,0.00058507]
[1641881222960,0.382105,42138.0,42137.0,0.00058507]
[1641881223158,0.371105,42138.0,42135.0,0.00163427]
[1641881223365,0.29,42142.0,42135.0,0.00163427]
[1641881223656,0.24,42142.0,42135.0,0.00163427]
[1641881223858,0.245,42142.0,42139.0,0.32748382]
[1641881224057,0.371105,42141.0,42139.0,0.72782104]
[1641881224257,0.245,42142.0,42139.0,0.72782104]
[1641881225058,0.24,42142.0,42139.0,0.72782104]
[1641881225259,0.24,42142.0,42140.0,0.33898962]
[1641881225462,0.24,42142.0,42139.0,0.72782104]
[1641881225913,0.248,42142.0,42139.0,0.72782104]
[1641881226914,0.248,42142.0,42140.0,0.33971959]
[1641881227113,0.24,42142.0,42140.0,0.33971959]
[1641881227714,0.24,42142.0,42139.0,0.40033722]
[1641881227913,0.248,42142.0,42139.0,0.40033722]
[1641881228116,0.248,42142.0,42141.0,0.00058161]
[1641881229759,0.24,42142.0,42141.0,0.00058161]
[1641881229960,0.248,42142.0,42141.0,0.00058161]
[1641881230662,0.248,42142.0,42141.0,0.31823551]
[1641881230862,0.248,42142.0,42141.0,0.00058161]
[1641881231061,0.24,42142.0,42141.0,0.00058161]
[1641881231861,0.249,42142.0,42141.0,0.00058161]
[1641881232662,0.249,42142.0,42141.0,0.33642682]
[1641881233113,0.24,42142.0,42141.0,0.33642682]
[1641881234013,0.249,42142.0,42141.0,0.33642682]
[1641881234214,0.17823236,42142.0,42141.0,0.33642682]
[1641881234415,0.17823236,42142.0,42141.0,0.94116845]
[1641881235515,0.17823236,42142.0,42141.0,0.60532324]
[1641881235918,0.18723236,42142.0,42141.0,0.60532324]
[1641881236116,0.17823236,42142.0,42141.0,0.60532324]
[1641881236862,0.17823236,42142.0,42141.0,1.29189258]
[1641881237063,0.17823236,42142.0,42141.0,1.63441632]
[1641881237264,0.16923236,42142.0,42141.0,1.78441632]
[1641881237462,0.14427126,42142.0,42141.0,2.15552132]
[1641881237864,0.14427126,42142.0,42141.0,2.56026212]
[1641881238663,0.14427126,42142.0,42141.0,1.85473022]
[1641881239064,0.0572912,42142.0,42141.0,1.85473022]
[1641881245765,0.0572912,42142.0,42141.0,0.67563714]
[1641881245967,0.0572912,42142.0,42141.0,0.30453214]
[1641881246768,0.0572912,42142.0,42141.0,0.6053359]
[1641881247167,0.0572912,42142.0,42141.0,0.00058161]
[1641881248212,0.0572912,42142.0,42140.0,1.22372441]
[1641881248409,0.0572912,42142.0,42141.0,0.60475429]
[1641881248814,0.0572912,42142.0,42141.0,0.65475429]
[1641881249013,0.0572912,42142.0,42141.0,0.05]
[1641881249511,0.0572912,42142.0,42140.0,1.27372441]
[1641881250511,0.0572912,42142.0,42140.0,1.22372441]
[1641881250710,0.0572912,42142.0,42140.0,0.88816815]
[1641881251415,0.0572912,42142.0,42140.0,0.28341386]
[1641881252067,0.0592912,42142.0,42140.0,0.28341386]
[1641881253369,0.0592912,42142.0,42141.0,0.00060774]
[1641881253975,0.0672912,42142.0,42141.0,0.00060774]
[1641881255912,0.0582912,42142.0,42141.0,0.00060774]
[1641881256111,0.0582912,42142.0,42141.0,0.37171274]
[1641881257215,0.0572912,42142.0,42141.0,0.37171274]
[1641881258113,0.0592912,42142.0,42141.0,0.37234598]
[1641881258714,0.0592912,42142.0,42141.0,0.97710027]
[1641881259118,0.0592912,42142.0,42141.0,1.31108753]
[1641881259360,0.0572912,42142.0,42141.0,1.31108753]
[1641881259966,0.0572912,42142.0,42141.0,0.97710027]
[1641881260863,0.0572912,42142.0,42141.0,0.60599527]
[1641881261864,0.0572912,42142.0,42141.0,0.00124098]
[1641881264314,0.0572912,42142.0,42141.0,0.60611756]
[1641881266867,0.0572912,42142.0,42141.0,0.00124098]
[1641881268966,0.0572912,42142.0,42141.0,0.37234598]
[1641881269668,0.0572912,42142.0,42141.0,1.37781062]
[1641881272418,0.0572912,42142.0,42141.0,0.67226395]
[1641881273420,0.0572912,42142.0,42141.0,0.30115895]
[1641881274023,0.0672912,42142.0,42141.0,0.00124098]
[1641881274222,0.0672912,42142.0,42141.0,0.60637092]
[1641881274870,0.0672912,42142.0,42141.0,0.00124098]
[1641881275268,0.0572912,42142.0,42141.0,0.00124098]
[1641881275469,0.0572912,42142.0,42141.0,0.60637293]
[1641881276070,0.0662912,42142.0,42141.0,0.60637293]
[1641881277075,0.4702379,42142.0,42139.0,0.70598493]
[1641881277275,0.00121471,42140.0,42132.0,0.0011]
[1641881277473,0.00125692,42137.0,42132.0,0.0011]
[1641881277673,0.04855692,42137.0,42132.0,0.0011]
[1641881277875,0.04855692,42137.0,42135.0,0.00029]
[1641881278115,0.05555692,42137.0,42135.0,0.00029]
[1641881278616,0.371105,42136.0,42135.0,0.00029]
[1641881278816,0.450515,42136.0,42135.0,0.00029]
[1641881279018,0.550515,42136.0,42135.0,0.00029]
[1641881280116,0.560515,42136.0,42135.0,0.00029]
[1641881281419,0.89262991,42136.0,42135.0,0.00029]
[1641881282073,0.90462991,42136.0,42135.0,0.00029]
[1641881282673,0.80462991,42136.0,42135.0,0.00029]
[1641881282874,0.77911633,42136.0,42135.0,0.00029]
[1641881283275,0.76711633,42136.0,42135.0,0.00092716]
[1641881284076,0.77811633,42136.0,42135.0,0.00092716]
[1641881284877,0.78936046,42136.0,42135.0,0.00092716]
[1641881285277,0.450515,42136.0,42135.0,0.00092716]
[1641881285614,0.68801944,42136.0,42135.0,0.00092716]
[1641881286216,0.70101944,42136.0,42135.0,0.00092716]
[1641881287019,0.80101944,42136.0,42135.0,0.00092716]
[1641881287316,0.78801944,42136.0,42135.0,0.00092716]
[1641881287519,0.68801944,42136.0,42135.0,0.00092716]
[1641881288017,0.371105,42136.0,42135.0,0.00092716]
[1641881288316,0.382105,42136.0,42135.0,0.00092716]
[1641881289366,0.68772256,42136.0,42135.0,0.00092716]
[1641881290272,0.69772256,42136.0,42135.0,0.00092716]
[1641881291268,0.381105,42136.0,42135.0,0.00092716]
[1641881291466,0.371105,42136.0,42135.0,0.00092716]
[1641881292067,0.388105,42136.0,42135.0,0.00092716]
[1641881293418,0.371105,42136.0,42135.0,0.00092716]
[1641881294221,0.386105,42136.0,42135.0,0.00092716]
[1641881295421,0.471105,42136.0,42135.0,0.00092716]
[1641881296121,0.483105,42136.0,42135.0,0.00092716]
[1641881296320,0.383105,42136.0,42135.0,0.00092716]
[1641881297170,0.378105,42136.0,42135.0,0.00092716]
[1641881297971,0.366105,42136.0,42135.0,0.00092716]
[1641881298275,0.379105,42136.0,42135.0,0.00092716]
[1641881299072,0.013,42136.0,42135.0,0.00092716]
[1641881299671,0.0572912,42142.0,42135.0,0.00092716]
[1641881299872,0.371186,42141.0,42135.0,0.00092716]
[1641881300074,0.371186,42141.0,42138.0,0.25275282]
[1641881300922,0.0612912,42142.0,42138.0,0.25275282]
[1641881302221,0.0712912,42142.0,42138.0,0.25275282]
[1641881302420,0.0712912,42142.0,42139.0,0.33925471]
[1641881303222,0.0712912,42142.0,42140.0,0.00066908]
[1641881304224,0.0782912,42142.0,42141.0,0.42044824]
[1641881305469,0.0572912,42142.0,42141.0,0.42044824]
[1641881306269,0.0582912,42142.0,42141.0,0.42044824]
[1641881307073,0.0582912,42142.0,42140.0,0.00066908]
[1641881307473,0.0572912,42142.0,42140.0,0.00066908]
[1641881308219,0.0612912,42142.0,42140.0,0.24833497]
[1641881309121,0.01837689,42141.0,42140.0,0.24833497]
[1641881310120,0.02437689,42141.0,42140.0,0.24833497]
[1641881311423,0.01837689,42141.0,42140.0,0.24833497]
[1641881311622,0.01837689,42141.0,42140.0,0.23799397]
[1641881312271,0.02437689,42141.0,42140.0,0.23799397]
[1641881313273,0.02437689,42141.0,42140.0,0.23866305]
[1641881313479,0.82278369,42147.0,42140.0,0.23866305]
[1641881313776,0.00714696,42147.0,42140.0,0.23866305]
[1641881314174,0.01114696,42147.0,42140.0,0.23866305]
[1641881314375,0.01114696,42147.0,42144.0,0.00121959]
[1641881314376,0.004,42147.0,42144.0,0.00121959]
[1641881315476,1.1758,42154.0,42145.0,0.32399438]
[1641881315724,0.5586,42155.0,42153.0,0.29561121]
[1641881315926,0.371186,42154.0,42153.0,0.29561121]
[1641881316127,0.371186,42154.0,42153.0,0.29861121]
[1641881316331,0.027,42155.0,42153.0,0.29861121]
[1641881317528,0.28685827,42158.0,42153.0,0.29561121]
[1641881317730,0.00085437,42156.0,42153.0,0.29561121]
[1641881318230,0.02785437,42156.0,42154.0,0.00066488]
[1641881318630,0.26785437,42156.0,42154.0,0.00066488]
[1641881318834,0.267,42156.0,42154.0,0.00066488]
[1641881319475,0.24,42156.0,42154.0,0.00066488]
[1641881320274,0.247,42156.0,42154.0,0.02166488]
[1641881320674,0.371186,42155.0,42154.0,0.02166488]
[1641881320875,0.247,42156.0,42154.0,0.02166488]
[1641881321576,0.24,42156.0,42154.0,0.00066488]
[1641881321774,0.24,42156.0,42155.0,0.68369129]
[1641881322175,0.276,42156.0,42155.0,0.68369129]
[1641881322375,0.276,42156.0,42155.0,1.06887762]
[1641881323422,0.24,42156.0,42155.0,1.0695422]
[1641881323722,0.24,42156.0,42155.0,0.75744257]
[1641881324320,0.276,42156.0,42155.0,0.76644257]
[1641881324721,0.276,42156.0,42155.0,1.05914433]
[1641881326125,0.276,42156.0,42155.0,1.05014433]
[1641881326126,0.24,42156.0,42155.0,1.05014433]
[1641881326325,0.256,42156.0,42155.0,1.05914433]
[1641881327572,0.24,42156.0,42155.0,1.05014433]
[1641881328172,0.24,42156.0,42155.0,1.05914433]
[1641881328173,0.256,42156.0,42155.0,1.05914433]
[1641881328373,0.256,42156.0,42155.0,0.76644257]
[1641881328575,0.256,42156.0,42155.0,0.00966458]
[1641881329574,0.256,42156.0,42155.0,0.00189264]
[1641881329575,0.16304947,42156.0,42155.0,0.00189264]
[1641881329774,0.16304947,42156.0,42155.0,0.37307864]
[1641881330175,0.18404947,42156.0,42155.0,0.38307864]
[1641881331022,0.18404947,42156.0,42155.0,0.79465681]
[1641881331222,0.18404947,42156.0,42155.0,1.19144705]
[1641881331425,0.16304947,42156.0,42155.0,1.18144705]
[1641881332224,0.16304947,42156.0,42155.0,1.19344705]
[1641881332823,0.16304947,42156.0,42155.0,1.24221899]
[1641881333324,0.16304947,42156.0,42155.0,1.24281015]
[1641881333525,0.16304947,42156.0,42155.0,1.23081015]
[1641881334224,0.19004947,42156.0,42155.0,1.23981015]
[1641881335473,0.16304947,42156.0,42155.0,1.23081015]
[1641881336273,0.19204947,42156.0,42155.0,1.24081015]
[1641881337574,0.16304947,42156.0,42155.0,0.85962415]
[1641881338221,0.18804947,42156.0,42155.0,0.86862415]
[1641881339523,0.16304947,42156.0,42155.0,0.85962415]
[1641881340222,0.18804947,42156.0,42155.0,0.86862415]
[1641881340424,0.18804947,42156.0,42155.0,0.01025574]
[1641881340725,0.23804947,42156.0,42155.0,0.01025574]
[1641881340925,0.60923547,42156.0,42155.0,0.01025574]
[1641881341323,1.00923547,42156.0,42155.0,0.01025574]
[1641881341524,0.53423547,42156.0,42155.0,0.00125574]
[1641881342196,0.54523547,42156.0,42155.0,0.00125574]
[1641881342596,0.88354707,42156.0,42155.0,0.00125574]
[1641881342997,0.54523547,42156.0,42155.0,0.00125574]
[1641881343396,0.53423547,42156.0,42155.0,0.00125574]
[1641881344496,0.57323547,42156.0,42155.0,0.00225574]
[1641881345498,0.53423547,42156.0,42155.0,0.00125574]
[1641881346321,0.57423547,42156.0,42155.0,0.00225574]
[1641881347623,0.16304947,42156.0,42155.0,0.00125574]
[1641881348323,0.22004947,42156.0,42155.0,0.00225574]
[1641881349470,0.22004947,42156.0,42155.0,0.00125574]
[1641881349672,0.16304947,42156.0,42155.0,0.00125574]
[1641881350275,0.16304947,42156.0,42155.0,0.00825574]
[1641881350474,0.16304947,42156.0,42155.0,0.09785574]
[1641881350670,0.16304947,42156.0,42155.0,1.34932794]
[1641881350869,0.16304947,42156.0,42155.0,1.40052854]
[1641881351070,0.16304947,42156.0,42155.0,1.30328314]
[1641881351471,0.16304947,42156.0,42155.0,1.29628314]
[1641881351674,0.00085436,42158.0,42155.0,1.44358314]
[1641881351871,0.00085436,42158.0,42157.0,0.00125096]
[1641881352072,0.00085436,42158.0,42157.0,0.87432145]
[1641881352577,0.00341686,42166.0,42165.0,0.29866767]
[1641881352773,0.00341686,42166.0,42165.0,0.99235268]
[1641881352974,0.00341686,42166.0,42165.0,1.32135274]
[1641881353523,0.2921,42177.0,42165.0,1.46796274]
[1641881353524,0.22723593,42176.0,42165.0,1.46796274]
[1641881353723,0.00085427,42168.0,42165.0,1.09686974]
[1641881353923,0.00085427,42168.0,42166.0,0.371186]
[1641881354725,0.23780108,42176.0,42166.0,0.371186]
[1641881354922,0.00341651,42175.0,42174.0,0.32739091]
[1641881355127,0.37460251,42175.0,42174.0,0.32739091]
[1641881355623,0.37460251,42175.0,42165.0,0.50555134]
[1641881355823,0.00341651,42175.0,42165.0,0.40894134]
[1641881356024,0.2847,42178.0,42165.0,0.40894134]
[1641881356224,0.00085423,42172.0,42165.0,0.40894134]
[1641881356422,0.00085423,42172.0,42171.0,0.24862924]
[1641881357073,0.29184166,42178.0,42171.0,0.24862924]
[1641881357273,0.00085422,42174.0,42171.0,0.24862924]
[1641881357473,0.00085422,42174.0,42172.0,0.05]
[1641881358273,0.00714166,42178.0,42172.0,0.055]
[1641881358473,0.0008542,42175.0,42172.0,0.055]
[1641881359376,0.24,42174.0,42172.0,0.055]
[1641881359676,0.24,42174.0,42172.0,0.05]
[1641881360279,0.24,42174.0,42172.0,0.055]
[1641881362328,0.24,42174.0,42172.0,0.006]
[1641881363330,0.366186,42173.0,42172.0,0.006]
[1641881363529,0.24,42174.0,42172.0,0.61380382]
[1641881364380,0.24,42174.0,42172.0,0.28509521]
[1641881364574,0.24,42174.0,42172.0,0.008]
[1641881364773,0.371076,42173.0,42172.0,0.008]
[1641881364973,0.24,42174.0,42172.0,0.008]
[1641881365774,0.24,42174.0,42172.0,0.05]
[1641881366174,0.24,42174.0,42172.0,0.31844142]
[1641881366375,0.24,42174.0,42172.0,0.32744142]
[1641881367574,0.24,42174.0,42172.0,0.31844142]
[1641881367974,0.24,42174.0,42172.0,0.26844142]
[1641881368228,0.24,42174.0,42173.0,0.00104896]
[1641881368725,0.611076,42174.0,42173.0,0.00104896]
[1641881370527,0.611076,42174.0,42173.0,0.01004896]
[1641881371625,0.611076,42174.0,42173.0,0.00104896]
[1641881372274,0.24,42174.0,42173.0,0.00104896]
[1641881372473,0.24,42174.0,42173.0,0.00504896]
[1641881373579,0.611076,42174.0,42173.0,0.00504896]
[1641881373777,0.611076,42174.0,42173.0,0.00104896]
[1641881374377,0.611076,42174.0,42173.0,0.00704896]
[1641881375729,0.611076,42174.0,42173.0,0.00104896]
[1641881376332,0.611076,42174.0,42173.0,0.00804896]
[1641881377732,0.611076,42174.0,42173.0,0.00104896]
[1641881378332,0.611076,42174.0,42173.0,0.00804896]
[1641881379581,0.611076,42174.0,42173.0,0.00104896]
[1641881380378,0.611076,42174.0,42173.0,0.00904896]
[1641881381580,0.611076,42174.0,42173.0,0.00104896]
[1641881382379,0.611076,42174.0,42173.0,0.00804896]
[1641881383633,0.611076,42174.0,42173.0,0.00104896]
[1641881384037,0.24,42174.0,42173.0,0.00104896]
[1641881384437,0.24,42174.0,42173.0,0.00704896]
[1641881385034,0.135,42174.0,42173.0,0.00704896]
[1641881385636,0.135,42174.0,42173.0,0.00104896]
[1641881386337,0.135,42174.0,42173.0,0.00704896]
[1641881387782,0.135,42174.0,42173.0,0.00104896]
[1641881388383,0.135,42174.0,42173.0,0.00704896]
[1641881389785,0.135,42174.0,42173.0,0.00104896]
[1641881390485,0.135,42174.0,42173.0,0.00704896]
[1641881392528,0.46297426,42174.0,42173.0,0.01404896]
[1641881392728,0.135,42174.0,42173.0,0.01404896]
[1641881394028,0.135,42174.0,42173.0,0.00104896]
[1641881394401,0.135,42174.0,42173.0,0.00704896]
[1641881394793,0.46956885,42174.0,42173.0,0.00704896]
[1641881394995,0.84064485,42174.0,42173.0,0.00704896]
[1641881395594,0.84064485,42174.0,42173.0,0.00104896]
[1641881398135,0.506076,42174.0,42173.0,0.00104896]
[1641881401348,0.86422462,42174.0,42173.0,0.00104896]
[1641881402983,0.506076,42174.0,42173.0,0.00104896]
[1641881403282,0.83287045,42174.0,42173.0,0.00104896]
[1641881405730,0.506076,42174.0,42173.0,0.00104896]
[1641881409487,0.135,42174.0,42173.0,0.00104896]
[1641881411084,0.506076,42174.0,42173.0,0.00104896]
[1641881412489,0.506076,42174.0,42173.0,0.00204896]
[1641881413135,0.135,42174.0,42173.0,0.00204896]
[1641881413836,0.135,42174.0,42173.0,0.00104896]
[1641881414537,0.135,42174.0,42173.0,0.00304896]
[1641881415336,0.135,42174.0,42173.0,0.25458701]
[1641881415737,0.135,42174.0,42173.0,0.25258701]
[1641881416538,0.135,42174.0,42173.0,0.26058701]
[1641881417784,0.135,42174.0,42173.0,0.25258701]
[1641881418582,0.135,42174.0,42173.0,0.26058701]
[1641881419782,0.135,42174.0,42173.0,0.25258701]
[1641881420632,0.135,42174.0,42173.0,0.26258701]
[1641881421733,0.135,42174.0,42173.0,0.25258701]
[1641881422536,0.135,42174.0,42173.0,0.26458701]
[1641881422835,0.135,42174.0,42173.0,0.01304896]
[1641881423835,0.135,42174.0,42173.0,0.00104896]
[1641881424483,0.135,42174.0,42173.0,0.01104896]
[1641881425685,0.135,42174.0,42173.0,0.00104896]
[1641881426583,0.135,42174.0,42173.0,0.01104896]
[1641881427787,0.135,42174.0,42173.0,0.00104896]
[1641881428431,0.135,42174.0,42173.0,0.01104896]
[1641881429735,0.135,42174.0,42173.0,0.00104896]
[1641881430035,0.13,42174.0,42173.0,0.00104896]
[1641881430435,0.13,42174.0,42173.0,0.01204896]
[1641881430839,0.13,42174.0,42173.0,0.61691855]
[1641881431039,0.13,42174.0,42173.0,1.35340293]
[1641881431639,0.13,42174.0,42173.0,0.74853334]
[1641881431879,0.13,42174.0,42173.0,0.73753334]
[1641881432578,0.13,42174.0,42173.0,0.75053334]
[1641881433280,0.125,42174.0,42173.0,0.75053334]
[1641881433881,0.125,42174.0,42173.0,0.73753334]
[1641881434482,0.125,42174.0,42173.0,0.75053334]
[1641881435734,0.125,42174.0,42173.0,0.73753334]
[1641881436632,0.125,42174.0,42173.0,0.75253334]
[1641881437833,0.125,42174.0,42173.0,0.73753334]
[1641881438533,0.125,42174.0,42173.0,0.75253334]
[1641881439381,0.125,42174.0,42173.0,0.75382997]
[1641881439582,0.125,42174.0,42173.0,0.38842159]
[1641881439783,0.125,42174.0,42173.0,0.37342159]
[1641881440583,0.125,42174.0,42173.0,0.38742159]
[1641881441584,0.125,42174.0,42173.0,0.74397742]
[1641881441783,0.125,42174.0,42173.0,0.72997742]
[1641881442385,0.125,42174.0,42173.0,0.72868079]
[1641881442586,0.125,42174.0,42173.0,0.74568079]
[1641881443234,0.125,42174.0,42173.0,0.38912496]
[1641881443835,0.125,42174.0,42173.0,0.37212496]
[1641881444534,0.125,42174.0,42173.0,0.38812496]
[1641881445736,0.125,42174.0,42173.0,0.37212496]
[1641881446539,0.125,42174.0,42173.0,0.34812496]
[1641881447388,0.125,42174.0,42173.0,0.95299455]
[1641881447785,0.125,42174.0,42173.0,0.93699455]
[1641881448186,0.12525125,42174.0,42173.0,0.93774636]
[1641881448589,0.12525125,42174.0,42173.0,0.95374636]
[1641881449990,0.12525125,42174.0,42173.0,0.34887677]
[1641881450390,0.12525125,42174.0,42173.0,0.33287677]
[1641881450635,0.12525125,42174.0,42173.0,0.34887677]
[1641881451037,0.12525125,42174.0,42173.0,0.94706664]
[1641881451839,0.12525125,42174.0,42173.0,0.33287677]
[1641881452637,0.12525125,42174.0,42173.0,0.34887677]
[1641881453539,2.13576348,42174.0,42173.0,0.34887677]
[1641881453739,2.13576348,42174.0,42173.0,0.00075181]
[1641881454139,0.32550705,42172.0,42166.0,0.58518959]
[1641881454397,0.32550705,42172.0,42170.0,0.31356209]
[1641881454587,0.32627543,42172.0,42170.0,0.31356209]
[1641881454787,0.32627543,42172.0,42162.0,0.00498151]
[1641881454987,0.32627543,42172.0,42169.0,0.36896201]
[1641881455286,1.00828041,42171.0,42169.0,0.36896201]
[1641881455486,0.26114823,42165.0,42163.0,0.00670983]
[1641881455687,0.26114823,42165.0,42164.0,0.418373]
[1641881456290,0.26114823,42165.0,42161.0,0.218553]
[1641881456291,0.26114823,42165.0,42159.0,0.20076]
[1641881456490,0.26114823,42165.0,42161.0,0.48179668]
[1641881456689,1.26942864,42165.0,42164.0,0.015]
[1641881456993,1.27019708,42165.0,42164.0,0.015]
[1641881457990,1.26942864,42165.0,42164.0,0.015]
[1641881458241,1.26942864,42165.0,42164.0,0.015755]
[1641881458242,2.05227686,42165.0,42164.0,0.015755]
[1641881458439,1.72720619,42165.0,42164.0,0.000755]
[1641881458639,1.83420619,42165.0,42164.0,0.000755]
[1641881459039,0.82592578,42165.0,42164.0,0.000755]
[1641881459548,0.64791578,42165.0,42164.0,0.000755]
[1641881459739,0.26984278,42165.0,42164.0,0.000755]
[1641881459939,0.31984278,42165.0,42164.0,0.000755]
[1641881460638,0.35784278,42165.0,42164.0,0.000755]
[1641881460840,0.35784278,42165.0,42164.0,0.60036534]
[1641881461238,0.09669455,42165.0,42164.0,0.60036534]
[1641881461440,0.09669455,42165.0,42164.0,0.000755]
[1641881461896,0.04669455,42165.0,42164.0,0.60036534]
[1641881462093,0.28669455,42165.0,42164.0,0.60036534]
[1641881462290,0.62788764,42165.0,42164.0,0.60036534]
[1641881462490,0.63288764,42165.0,42164.0,0.60036534]
[1641881462692,0.63167386,42165.0,42164.0,0.60036534]
[1641881462892,0.63167386,42165.0,42164.0,0.000755]
[1641881463295,0.63167386,42165.0,42162.0,0.60036534]
[1641881463895,0.58867386,42165.0,42162.0,0.60036534]
[1641881464496,0.58867386,42165.0,42164.0,0.59961034]
[1641881465395,0.29748077,42165.0,42164.0,0.59961034]
[1641881466437,0.61927402,42165.0,42164.0,0.59961034]
[1641881466638,0.62027402,42165.0,42164.0,0.59961034]
[1641881466836,0.29848077,42165.0,42163.0,0.59961034]
[1641881467241,0.24848077,42165.0,42163.0,0.59961034]
[1641881467938,0.24748077,42165.0,42164.0,0.59961034]
[1641881468138,0.24748077,42165.0,42164.0,0.60036534]
[1641881468339,0.24748077,42165.0,42164.0,0.000755]
[1641881468940,0.24748077,42165.0,42164.0,0.59803844]
[1641881469391,0.29748077,42165.0,42164.0,0.59803844]
[1641881473836,0.29748077,42165.0,42164.0,0.000755]
[1641881476636,0.29033506,42165.0,42164.0,0.000755]
[1641881476899,0.29033506,42165.0,42164.0,0.300755]
[1641881477294,0.29033506,42165.0,42164.0,0.371828]
[1641881477695,0.29033506,42165.0,42164.0,0.96911144]
[1641881477895,0.29033506,42165.0,42164.0,0.59803844]
[1641881478696,0.24033506,42165.0,42164.0,0.59803844]
[1641881478896,0.29033506,42165.0,42164.0,0.59803844]
[1641881479497,0.56495759,42165.0,42164.0,0.59803844]
[1641881479697,0.56495759,42165.0,42164.0,0.000755]
[1641881479898,0.24033506,42165.0,42164.0,0.000755]
[1641881481040,0.29033506,42165.0,42164.0,0.000755]
[1641881481440,0.6186094,42165.0,42164.0,0.000755]
[1641881481640,0.29033506,42165.0,42164.0,0.000755]
[1641881482644,0.29333506,42165.0,42164.0,0.000755]
[1641881483242,0.29333506,42165.0,42161.0,0.59803844]
[1641881483644,0.2519252,42163.0,42161.0,0.59803844]
[1641881484044,0.05,42163.0,42161.0,0.59803844]
[1641881484488,0.00071075,42164.0,42161.0,0.000755]
[1641881485486,0.29033506,42165.0,42161.0,0.000755]
[1641881485687,0.29104581,42165.0,42161.0,0.000755]
[1641881486689,0.29333506,42165.0,42161.0,0.000755]
[1641881486890,0.31251798,42164.0,42161.0,0.000755]
[1641881488136,0.31285301,42164.0,42160.0,0.59798004]
[1641881488637,0.31585301,42164.0,42160.0,0.59798004]
[1641881488838,0.00333503,42164.0,42160.0,0.59798004]
[1641881489442,0.00404577,42164.0,42160.0,0.59798004]
[1641881490444,0.00333503,42164.0,42160.0,0.59798004]
[1641881490739,0.00904577,42164.0,42160.0,0.59798004]
[1641881490943,0.00604577,42164.0,42160.0,0.59798004]
[1641881491541,0.00533503,42164.0,42160.0,0.59798004]
[1641881491740,0.00604577,42164.0,42161.0,0.371073]
[1641881491989,0.31623045,42164.0,42160.0,0.59798004]
[1641881492589,0.31923045,42164.0,42160.0,0.62498004]
[1641881492789,0.31851971,42164.0,42160.0,0.62498004]
[1641881492994,0.31923045,42164.0,42160.0,0.62498004]
[1641881493390,0.00033478,42162.0,42160.0,0.62428344]
[1641881493993,0.00033478,42162.0,42161.0,0.59728344]
[1641881494195,0.00033478,42162.0,42161.0,0.96835644]
[1641881494794,0.00033478,42162.0,42161.0,1.00335644]
[1641881495396,0.00071074,42164.0,42163.0,0.43221572]
[1641881495647,0.00071074,42164.0,42163.0,0.60302372]
[1641881496447,0.24,42165.0,42163.0,0.87642771]